bitfinex/quotes_BTCUSD_20240617
["timestamp","ask_amount","ask_price","bid_price","bid_amount"]
[1718598461150,1.11263011,66363.0,66362.0,0.19405576]
[1718598461374,0.81125811,66363.0,66362.0,0.25658207]
[1718598462236,0.67835811,66363.0,66362.0,0.25658207]
[1718598462452,0.37698611,66363.0,66362.0,0.25658207]
[1718598463218,0.37698611,66363.0,66362.0,0.19405576]
[1718598463584,0.37698611,66363.0,66362.0,0.25658216]
[1718598464197,0.37698611,66363.0,66362.0,0.21157902]
[1718598464610,0.06386011,66363.0,66362.0,0.66364402]
[1718598464811,0.06386011,66363.0,66362.0,0.57167174]
[1718598465244,0.17630011,66363.0,66362.0,0.57168824]
[1718598465452,0.06386011,66363.0,66362.0,0.80554402]
[1718598465663,0.06386011,66363.0,66362.0,0.50416702]
[1718598465875,0.17630011,66363.0,66362.0,0.50416702]
[1718598466078,0.17630011,66363.0,66362.0,0.59417331]
[1718598466639,0.06386011,66363.0,66362.0,0.59417331]
[1718598466839,0.00939401,66363.0,66362.0,0.82359086]
[1718598467136,0.05827701,66363.0,66362.0,0.82359086]
[1718598467521,0.06375445,66363.0,66362.0,0.82359086]
[1718598468111,0.06375445,66363.0,66362.0,0.93609872]
[1718598469789,0.01487145,66363.0,66362.0,1.23747572]
[1718598470002,0.01487145,66363.0,66362.0,0.93609872]
[1718598470219,0.00939401,66363.0,66362.0,1.23747572]
[1718598470424,0.00939401,66363.0,66362.0,1.10692102]
[1718598471266,0.00939401,66363.0,66362.0,0.919342]
[1718598471663,0.00939401,66363.0,66362.0,1.04438548]
[1718598471876,0.00939401,66363.0,66362.0,1.03438548]
[1718598471987,0.00939401,66363.0,66362.0,1.08290731]
[1718598472192,0.00939401,66363.0,66362.0,1.08290714]
[1718598472615,0.00939401,66363.0,66362.0,1.60097193]
[1718598473025,0.00939401,66363.0,66362.0,1.58697193]
[1718598473434,0.00939401,66363.0,66362.0,1.41340679]
[1718598474083,0.00939401,66363.0,66362.0,1.61496877]
[1718598474760,0.00939401,66363.0,66362.0,1.60096877]
[1718598474939,0.00939401,66363.0,66362.0,1.58696877]
[1718598475148,0.00939401,66363.0,66362.0,1.61496877]
[1718598475710,0.00939401,66363.0,66362.0,1.60096877]
[1718598476064,0.00939401,66363.0,66362.0,1.61496877]
[1718598477725,0.00939401,66363.0,66362.0,1.91634577]
[1718598477859,0.00939401,66363.0,66362.0,2.01634577]
[1718598478284,0.00939401,66363.0,66362.0,1.90253075]
[1718598478483,1e-08,66363.0,66362.0,1.72252877]
[1718598478694,1e-08,66363.0,66362.0,1.77748387]
[1718598478915,1e-08,66363.0,66362.0,1.7149521]
[1718598479325,1e-08,66363.0,66362.0,2.0468891]
[1718598479724,1e-08,66363.0,66362.0,2.23443442]
[1718598479871,1e-08,66365.0,66364.0,1.196988]
[1718598480076,1e-08,66365.0,66364.0,1.44907579]
[1718598480284,1e-08,66365.0,66364.0,1.63661927]
[1718598480485,1e-08,66365.0,66364.0,1.64417927]
[1718598480685,1e-08,66365.0,66364.0,1.63661927]
[1718598481123,1e-08,66365.0,66364.0,1.63661136]
[1718598481293,1e-08,66365.0,66364.0,1.96097936]
[1718598481503,1e-08,66365.0,66364.0,2.17007282]
[1718598481706,1e-08,66365.0,66364.0,2.23170032]
[1718598481904,1e-08,66365.0,66364.0,2.22414032]
[1718598482130,1e-08,66365.0,66364.0,2.23814032]
[1718598482430,0.00939401,66378.0,66364.0,2.23814032]
[1718598482431,0.00939401,66378.0,66377.0,0.211854]
[1718598482628,0.00939401,66378.0,66377.0,1.09289536]
[1718598482835,0.01495242,66378.0,66377.0,1.09289536]
[1718598483043,0.00939401,66378.0,66377.0,1.15409536]
[1718598483244,0.00939401,66378.0,66377.0,0.55147736]
[1718598483446,0.00939401,66378.0,66377.0,0.40082336]
[1718598483651,0.35594442,66378.0,66377.0,0.19253557]
[1718598483965,0.20529242,66378.0,66377.0,0.19253557]
[1718598484368,0.35594442,66378.0,66377.0,0.19253557]
[1718598484626,0.35594442,66378.0,66377.0,0.19253118]
[1718598484833,0.20529242,66378.0,66377.0,0.20053118]
[1718598485229,0.65724842,66378.0,66377.0,0.20053118]
[1718598485393,0.20529242,66378.0,66377.0,0.20053118]
[1718598486226,0.35594442,66378.0,66377.0,0.20053118]
[1718598486847,0.40594442,66378.0,66377.0,0.20053118]
[1718598487093,1.43023942,66378.0,66377.0,0.1380223]
[1718598487290,1.43023942,66378.0,66377.0,0.013]
[1718598488238,1.43023942,66378.0,66369.0,0.1349932]
[1718598488239,0.211323,66370.0,66369.0,0.1349932]
[1718598488442,1.92533688,66370.0,66369.0,0.1349932]
[1718598488645,0.865892,66361.0,66360.0,0.000935]
[1718598488849,0.865892,66361.0,66360.0,0.12599505]
[1718598488850,0.916492,66361.0,66360.0,0.12599505]
[1718598489052,0.9707805,66361.0,66360.0,0.000935]
[1718598489867,1.1645805,66361.0,66360.0,0.000935]
[1718598491389,1.1745805,66361.0,66360.0,0.005935]
[1718598492010,1.1745805,66361.0,66360.0,0.010935]
[1718598492213,1.1745805,66361.0,66360.0,0.005935]
[1718598492600,1.1645805,66361.0,66360.0,0.007935]
[1718598492802,0.3674185,66361.0,66360.0,0.007935]
[1718598492996,0.1678455,66361.0,66360.0,0.158628]
[1718598493223,0.2167285,66361.0,66360.0,0.13299674]
[1718598493536,0.3674185,66361.0,66360.0,0.13299674]
[1718598493779,0.1042885,66361.0,66360.0,0.13299674]
[1718598493990,0.0554055,66361.0,66360.0,0.13299674]
[1718598494207,0.1478455,66361.0,66360.0,0.13299674]
[1718598494407,0.1967285,66361.0,66360.0,0.13299674]
[1718598494814,0.2167285,66361.0,66360.0,0.13299674]
[1718598496009,0.2167285,66361.0,66360.0,0.24053896]
[1718598497232,0.2167285,66361.0,66360.0,0.17801291]
[1718598497428,0.3674185,66361.0,66360.0,0.17801291]
[1718598497633,0.3674185,66361.0,66360.0,0.13299674]
[1718598497982,0.6687995,66361.0,66360.0,0.13299674]
[1718598498184,0.3674185,66361.0,66360.0,0.13299674]
[1718598499908,0.9701805,66361.0,66360.0,0.13299674]
[1718598500351,0.6687995,66361.0,66360.0,0.13299674]
[1718598500770,0.6687995,66361.0,66360.0,0.007935]
[1718598501205,0.6687995,66361.0,66360.0,0.13299234]
[1718598503610,0.9701805,66361.0,66360.0,0.13299234]
[1718598503874,0.9701805,66361.0,66360.0,0.13299286]
[1718598504435,0.6687995,66361.0,66360.0,0.13299286]
[1718598508808,0.9701805,66361.0,66360.0,0.13299286]
[1718598509422,0.6687995,66361.0,66360.0,0.13299286]
[1718598509625,0.9701805,66361.0,66360.0,0.13299286]
[1718598510931,0.6687995,66361.0,66360.0,0.13299286]
[1718598511341,0.9701805,66361.0,66360.0,0.13299286]
[1718598514208,0.9701805,66361.0,66360.0,0.19552178]
[1718598514838,1.12703515,66361.0,66360.0,0.19552178]
[1718598515041,1.12703515,66361.0,66360.0,0.13299286]
[1718598515042,1.57091615,66361.0,66360.0,0.13299286]
[1718598515250,0.9501805,66361.0,66360.0,0.13299286]
[1718598515421,1.0207805,66361.0,66360.0,0.13299286]
[1718598515836,0.7193995,66361.0,66360.0,0.13299286]
[1718598516428,0.7193995,66361.0,66360.0,0.19552382]
[1718598516429,0.2184455,66361.0,66360.0,0.19552382]
[1718598516631,1.0134905,66361.0,66360.0,0.19552382]
[1718598516831,1.0134905,66361.0,66360.0,0.13299286]
[1718598516832,1.1641805,66361.0,66360.0,0.13299286]
[1718598517036,1.4655615,66361.0,66360.0,0.13299286]
[1718598517231,0.2167285,66361.0,66360.0,0.19539286]
[1718598517475,0.5687095,66361.0,66360.0,0.2579236]
[1718598517675,1.0207805,66361.0,66360.0,0.2559236]
[1718598517961,0.2485355,66361.0,66360.0,0.2559236]
[1718598518114,0.1984455,66361.0,66360.0,0.2559236]
[1718598518321,0.2673285,66361.0,66360.0,0.2559236]
[1718598518526,0.0054055,66361.0,66360.0,0.7833026]
[1718598518730,0.0978455,66361.0,66360.0,0.3342236]
[1718598518928,0.09244,66361.0,66360.0,0.3292236]
[1718598519129,0.09828667,66361.0,66360.0,0.3262236]
[1718598519380,0.09828667,66361.0,66360.0,0.3272236]
[1718598519561,0.09828667,66361.0,66360.0,0.3302236]
[1718598519781,0.09828667,66361.0,66360.0,0.39770855]
[1718598519909,0.11828667,66361.0,66360.0,0.40270855]
[1718598520109,0.11828667,66361.0,66360.0,0.52489115]
[1718598520501,0.11928667,66361.0,66360.0,0.53889115]
[1718598520697,0.11928667,66361.0,66360.0,0.3432236]
[1718598520905,0.11928667,66361.0,66360.0,0.38519927]
[1718598521362,0.11928667,66361.0,66360.0,0.39619927]
[1718598521711,0.92333867,66361.0,66360.0,0.2135236]
[1718598522340,0.62195767,66361.0,66360.0,0.2135236]
[1718598524460,1.22920184,66361.0,66360.0,0.2135236]
[1718598524674,1.11773867,66361.0,66360.0,0.2135236]
[1718598525311,0.81635767,66361.0,66360.0,0.2135236]
[1718598525741,1.11773867,66361.0,66360.0,0.2135236]
[1718598527699,1.11773867,66361.0,66360.0,0.21352546]
[1718598530157,1.11773867,66361.0,66360.0,0.21352668]
[1718598531229,1.11773867,66361.0,66360.0,0.25855778]
[1718598532057,0.67195767,66361.0,66360.0,0.25855778]
[1718598532264,0.67195767,66361.0,66360.0,0.28107334]
[1718598533295,0.67195767,66361.0,66360.0,0.21352668]
[1718598535355,0.67195767,66361.0,66360.0,0.17852756]
[1718598535797,0.67195767,66361.0,66360.0,0.27605446]
[1718598536202,0.67195767,66361.0,66360.0,0.21352677]
[1718598536678,0.67195767,66361.0,66360.0,0.08846535]
[1718598537189,0.67195767,66361.0,66360.0,0.2760549]
[1718598537967,0.67195767,66361.0,66360.0,0.21352523]
[1718598538553,0.14988667,66361.0,66360.0,0.21352523]
[1718598538757,0.00684667,66361.0,66360.0,0.36421823]
[1718598538980,0.00684667,66361.0,66360.0,1.11249023]
[1718598539180,0.09928667,66361.0,66360.0,1.11249023]
[1718598539381,0.09344,66361.0,66360.0,1.11249023]
[1718598539575,0.001,66361.0,66360.0,1.11249023]
[1718598539780,0.09344,66361.0,66360.0,1.11249023]
[1718598540019,0.001,66361.0,66360.0,1.11249023]
[1718598540619,0.09344,66361.0,66360.0,0.81110423]
[1718598541025,0.0989141,66361.0,66360.0,0.81110423]
[1718598542686,0.0989141,66361.0,66360.0,0.74857388]
[1718598543325,0.1189141,66361.0,66360.0,0.74857388]
[1718598544016,0.1189141,66361.0,66360.0,0.74856439]
[1718598545498,0.1189141,66361.0,66360.0,0.15098539]
[1718598545499,0.1695141,66361.0,66360.0,0.15098539]
[1718598545929,0.1695141,66361.0,66360.0,0.26374159]
[1718598546147,0.1695141,66361.0,66360.0,0.15098539]
[1718598546353,0.1495141,66361.0,66360.0,0.26373692]
[1718598546564,0.1495141,66361.0,66360.0,0.15098539]
[1718598546990,0.0989141,66361.0,66360.0,0.29148539]
[1718598547202,0.0989141,66361.0,66360.0,0.317128]
[1718598547421,0.0989141,66361.0,66360.0,0.44217938]
[1718598547897,0.0064741,66361.0,66360.0,0.44217938]
[1718598548114,0.0064741,66361.0,66360.0,0.74356538]
[1718598548336,0.001,66361.0,66360.0,0.74356538]
[1718598548757,0.001,66361.0,66360.0,0.44217938]
[1718598548985,0.00647707,66361.0,66360.0,0.44217938]
[1718598549203,0.001,66361.0,66360.0,0.44217938]
[1718598549414,0.00647707,66361.0,66360.0,1.04495138]
[1718598549644,0.001,66361.0,66360.0,1.04495138]
[1718598553077,0.09344,66361.0,66360.0,0.9199]
[1718598553290,0.001,66361.0,66360.0,1.04494693]
[1718598553510,0.09344,66361.0,66360.0,0.74356093]
[1718598554601,0.001,66361.0,66360.0,0.74356093]
[1718598555264,0.001,66361.0,66360.0,1.04494693]
[1718598555487,0.0064806,66361.0,66360.0,1.04494693]
[1718598555710,0.001,66361.0,66360.0,1.04494693]
[1718598556158,0.0064806,66361.0,66360.0,1.04494693]
[1718598556386,0.001,66361.0,66360.0,1.04494693]
[1718598556613,0.0064806,66361.0,66360.0,1.04494693]
[1718598556823,0.0064806,66361.0,66360.0,1.0449459]
[1718598556824,0.001,66361.0,66360.0,1.0449459]
[1718598557027,0.0064806,66361.0,66360.0,1.0449459]
[1718598557235,0.001,66361.0,66360.0,1.0449459]
[1718598560322,0.09892322,66361.0,66360.0,1.0449459]
[1718598561280,0.11892322,66361.0,66360.0,1.0449459]
[1718598562269,0.09892322,66361.0,66360.0,1.0449468]
[1718598562616,0.001,66361.0,66360.0,1.0449468]
[1718598562964,0.001,66361.0,66360.0,0.7435608]
[1718598563166,0.00648271,66361.0,66360.0,0.7435608]
[1718598563381,0.09344,66361.0,66360.0,0.7435608]
[1718598563569,0.11892271,66361.0,66360.0,0.7435608]
[1718598564418,0.11892271,66361.0,66360.0,0.6030608]
[1718598564630,0.11892271,66361.0,66360.0,0.1509818]
[1718598564835,0.11892271,66361.0,66360.0,0.3016748]
[1718598567531,0.70069371,66361.0,66360.0,0.1509818]
[1718598567739,1.06597471,66361.0,66360.0,0.1509818]
[1718598567954,0.76459371,66361.0,66360.0,0.1509818]
[1718598569298,1.11617471,66361.0,66360.0,0.1509818]
[1718598569749,1.11617471,66361.0,66360.0,0.025935]
[1718598569928,1.11617471,66361.0,66360.0,0.15099163]
[1718598570575,0.67159371,66361.0,66360.0,0.15099163]
[1718598573179,0.81099371,66361.0,66360.0,0.15099163]
[1718598574744,0.82099371,66361.0,66360.0,0.15099163]
[1718598575191,0.86987671,66361.0,66360.0,0.15099163]
[1718598575416,0.80927671,66361.0,66360.0,0.15099163]
[1718598575623,1.16125771,66361.0,66360.0,0.15099163]
[1718598577514,1.17125771,66361.0,66360.0,0.15099163]
[1718598577730,1.17125771,66361.0,66360.0,0.24120245]
[1718598577936,1.16125771,66361.0,66360.0,0.24120245]
[1718598578114,1.16125771,66361.0,66360.0,0.15099163]
[1718598579370,1.16125771,66361.0,66360.0,0.025935]
[1718598579580,1.16125771,66361.0,66360.0,0.15099537]
[1718598579790,1.17125771,66361.0,66360.0,0.15099537]
[1718598580858,1.47263871,66361.0,66360.0,0.21866026]
[1718598581056,1.47263871,66361.0,66360.0,0.19610987]
[1718598581460,1.47263871,66361.0,66360.0,0.15099537]
[1718598586290,1.61990258,66361.0,66360.0,0.15099537]
[1718598586507,1.61990258,66361.0,66360.0,0.025935]
[1718598586718,1.47263871,66361.0,66360.0,0.025935]
[1718598589641,1.42203871,66361.0,66360.0,0.025935]
[1718598589847,1.47263871,66361.0,66360.0,0.025935]
[1718598601069,1.6247265,66361.0,66360.0,0.025935]
[1718598601473,1.9261075,66361.0,66360.0,0.025935]
[1718598601680,2.07819529,66361.0,66360.0,0.025935]
[1718598602284,2.17819529,66361.0,66360.0,0.014935]
[1718598602494,2.17719529,66361.0,66360.0,0.000935]
[1718598602705,2.17919529,66361.0,66360.0,0.000935]
[1718598602938,2.17919529,66361.0,66347.0,0.04938349]
[1718598602939,0.221323,66348.0,66347.0,0.04938349]
[1718598603140,0.221323,66348.0,66347.0,0.17447409]
[1718598603141,1.708903,66348.0,66347.0,0.17447409]
[1718598603396,0.872495,66347.0,66346.0,0.4787]
[1718598603601,0.60088,66348.0,66343.0,0.000935]
[1718598603602,0.372052,66344.0,66343.0,0.000935]
[1718598603935,1.02557,66344.0,66343.0,0.000935]
[1718598604466,1.327029,66344.0,66343.0,0.000935]
[1718598605231,1.327029,66344.0,66343.0,0.005935]
[1718598605646,1.403329,66344.0,66343.0,0.005935]
[1718598606799,1.405329,66344.0,66343.0,0.005935]
[1718598607414,1.54741679,66344.0,66343.0,0.005935]
[1718598607596,1.55741679,66344.0,66343.0,0.005935]
[1718598607797,1.55741679,66344.0,66343.0,0.000935]
[1718598608214,1.405329,66344.0,66343.0,0.000935]
[1718598609316,1.344729,66344.0,66343.0,0.000935]
[1718598609515,1.405329,66344.0,66343.0,0.000935]
[1718598610516,1.354729,66344.0,66343.0,0.000935]
[1718598610715,1.410429,66344.0,66343.0,0.000935]
[1718598611008,1.5578819,66344.0,66343.0,0.000935]
[1718598611385,1.9211409,66344.0,66343.0,0.000935]
[1718598611800,2.0211409,66344.0,66343.0,0.000935]
[1718598611998,1.9211409,66344.0,66343.0,0.000935]
[1718598614782,2.0211409,66344.0,66343.0,0.000935]
[1718598615332,1.9211409,66344.0,66343.0,0.000935]
[1718598617858,1.92675796,66344.0,66343.0,0.000935]
[1718598619399,2.02824575,66344.0,66343.0,0.000935]
[1718598619603,2.07884575,66344.0,66343.0,0.000935]
[1718598619811,2.02824575,66344.0,66343.0,0.000935]
[1718598620042,2.07884575,66344.0,66343.0,0.000935]
[1718598625390,1.66498675,66344.0,66343.0,0.000935]
[1718598625593,1.71558675,66344.0,66343.0,0.000935]
[1718598631131,1.63418675,66344.0,66343.0,0.000935]
[1718598635055,1.63400538,66344.0,66343.0,0.000935]
[1718598635849,1.63400538,66344.0,66343.0,0.02378044]
[1718598639132,1.58340538,66344.0,66343.0,0.02378044]
[1718598639541,1.63400538,66344.0,66343.0,0.02378044]
[1718598642467,1.63400538,66344.0,66343.0,0.000935]
[1718598649024,1.12449348,66344.0,66343.0,0.000935]
[1718598649246,1.12449348,66344.0,66343.0,0.46092103]
[1718598649247,0.10650006,66344.0,66343.0,0.46092103]
[1718598649459,0.10650006,66344.0,66343.0,0.4157711]
[1718598649679,0.10650006,66344.0,66343.0,0.37791492]
[1718598649920,0.15710006,66344.0,66343.0,0.52864592]
[1718598650149,0.10650006,66344.0,66343.0,0.4157711]
[1718598650359,0.10650006,66344.0,66343.0,0.35535238]
[1718598650360,0.24954006,66344.0,66343.0,0.35535238]
[1718598650570,0.24954006,66344.0,66343.0,0.35533932]
[1718598650787,0.15710006,66344.0,66343.0,0.50607032]
[1718598650987,0.24954006,66344.0,66343.0,0.41575583]
[1718598651199,0.24954006,66344.0,66343.0,0.50605198]
[1718598653548,0.24954006,66344.0,66343.0,0.41575583]
[1718598653950,0.10650006,66344.0,66343.0,0.41575583]
[1718598654157,0.15710006,66344.0,66343.0,0.41575583]
[1718598655593,0.15710006,66344.0,66343.0,0.48344312]
[1718598656941,0.10821706,66344.0,66343.0,0.48344312]
[1718598657166,0.00761706,66344.0,66343.0,1.47241399]
[1718598657395,0.05,66356.0,66355.0,0.443209]
[1718598657604,0.05,66356.0,66355.0,0.593913]
[1718598657826,0.15348922,66356.0,66355.0,0.593913]
[1718598660032,0.15348922,66356.0,66355.0,0.602913]
[1718598660463,0.24592922,66356.0,66355.0,0.600913]
[1718598660682,0.15348922,66356.0,66355.0,0.600913]
[1718598660911,0.15348922,66356.0,66355.0,0.602913]
[1718598661265,0.15348922,66356.0,66355.0,0.612913]
[1718598661385,0.00400622,66356.0,66355.0,1.21591237]
[1718598661612,0.00085,66360.0,66357.0,0.00018137]
[1718598661792,0.00085,66360.0,66355.0,1.22601879]
[1718598661793,0.00085,66360.0,66359.0,1.19624637]
[1718598662396,0.00085,66360.0,66359.0,1.34833416]
[1718598664076,0.00085,66360.0,66359.0,1.35733416]
[1718598664291,0.00085,66360.0,66359.0,1.38033416]
[1718598664853,0.00085,66360.0,66359.0,1.37133416]
[1718598665051,0.00085,66360.0,66359.0,1.38533416]
[1718598665279,0.00085,66360.0,66359.0,1.51037634]
[1718598666476,0.00085,66360.0,66359.0,1.52437634]
[1718598666877,0.00085,66360.0,66359.0,1.39933416]
[1718598667173,0.00085,66360.0,66359.0,1.52437448]
[1718598669031,0.00085,66360.0,66359.0,1.87636448]
[1718598669246,0.00085,66360.0,66359.0,1.88392448]
[1718598669439,0.00085,66360.0,66359.0,1.58253448]
[1718598670417,0.00085,66360.0,66359.0,1.57497448]
[1718598670648,0.00085,66360.0,66359.0,1.52437448]
[1718598670858,0.00085,66360.0,66359.0,1.57497448]
[1718598671734,0.00085,66360.0,66359.0,1.52437448]
[1718598674228,0.00085,66360.0,66359.0,1.53193448]
[1718598674562,0.00085,66360.0,66359.0,1.52437448]
[1718598675196,0.00085,66360.0,66359.0,1.53193448]
[1718598675368,0.00085,66360.0,66359.0,1.83332448]
[1718598675600,0.00085,66360.0,66359.0,1.95593448]
[1718598675825,0.00085,66360.0,66359.0,2.0083706]
[1718598676413,0.048883,66376.0,66369.0,1.20118837]
[1718598676613,0.05939401,66378.0,66369.0,1.32622869]
[1718598676814,0.00939401,66378.0,66369.0,1.47831648]
[1718598677014,0.048883,66376.0,66369.0,1.55191648]
[1718598677618,0.048883,66376.0,66369.0,1.56591648]
[1718598678020,0.048883,66376.0,66369.0,1.57991648]
[1718598678449,0.048883,66376.0,66369.0,1.52931648]
[1718598678809,0.00939401,66378.0,66369.0,1.52931648]
[1718598679011,0.048883,66375.0,66369.0,1.52931648]
[1718598679860,0.048883,66376.0,66369.0,1.52931648]
[1718598680079,0.09244,66374.0,66369.0,1.52913511]
[1718598680703,0.048883,66375.0,66369.0,1.52913511]
[1718598682792,0.048883,66375.0,66369.0,0.21544032]
[1718598682793,0.09244,66372.0,66369.0,0.21544032]
[1718598683044,0.09244,66373.0,66369.0,0.66745732]
[1718598683234,0.09244,66374.0,66369.0,0.66745732]
[1718598683469,0.00499025,66370.0,66369.0,0.96880232]
[1718598683814,0.00085,66370.0,66369.0,0.96880232]
[1718598684046,0.00085,66370.0,66369.0,0.98655409]
[1718598684251,0.00499025,66370.0,66369.0,0.62280909]
[1718598684422,0.00085,66370.0,66369.0,0.92415409]
[1718598685400,0.00085,66370.0,66369.0,0.91015409]
[1718598686195,0.00085,66370.0,66369.0,0.89615409]
[1718598686395,0.00085,66370.0,66369.0,0.59480909]
[1718598686600,0.00085,66370.0,66369.0,0.60880909]
[1718598686853,0.11310863,66370.0,66369.0,0.32146409]
[1718598687035,0.11310863,66370.0,66369.0,0.32145524]
[1718598687234,0.41859297,66370.0,66369.0,0.17078324]
[1718598687437,0.56926297,66370.0,66369.0,0.17078324]
[1718598687647,0.56926297,66370.0,66369.0,0.15678324]
[1718598687885,0.26792297,66370.0,66369.0,0.15678324]
[1718598688188,0.76346297,66370.0,66369.0,0.17078324]
[1718598688759,0.46212297,66370.0,66369.0,0.15678324]
[1718598689534,0.76346297,66370.0,66369.0,0.14278324]
[1718598689735,0.76346297,66370.0,66369.0,0.15578324]
[1718598690144,0.76346297,66370.0,66369.0,0.16778324]
[1718598690362,0.76346297,66370.0,66369.0,0.14278324]
[1718598690702,0.76346297,66370.0,66369.0,0.15378324]
[1718598690909,0.76346297,66370.0,66369.0,0.16378324]
[1718598691517,1.11398597,66370.0,66369.0,0.16378324]
[1718598692368,1.11398597,66370.0,66369.0,0.16379992]
[1718598693987,1.11398597,66370.0,66369.0,0.14604815]
[1718598694603,1.12398597,66370.0,66369.0,0.14604815]
[1718598695247,1.11398597,66370.0,66369.0,0.14604815]
[1718598697391,1.42532597,66370.0,66369.0,0.14604815]
[1718598698817,1.42532597,66370.0,66369.0,0.14605153]
[1718598700394,1.41532597,66370.0,66369.0,0.14605153]
[1718598700591,1.42532597,66370.0,66369.0,0.021]
[1718598703449,1.41532597,66370.0,66369.0,0.021]
[1718598704075,1.42532597,66370.0,66369.0,0.021]
[1718598704251,1.41532597,66370.0,66369.0,0.021]
[1718598704457,1.42532597,66370.0,66369.0,0.021]
[1718598705254,1.41532597,66370.0,66369.0,0.021]
[1718598705460,1.35322597,66370.0,66369.0,0.021]
[1718598705720,1.05188597,66370.0,66369.0,0.021]
[1718598706069,0.96948597,66370.0,66369.0,0.14604793]
[1718598706621,0.96948597,66370.0,66369.0,0.14604803]
[1718598706822,0.96948597,66370.0,66369.0,0.021]
[1718598707424,0.96948597,66370.0,66369.0,0.14604821]
[1718598709846,0.19631734,66370.0,66369.0,0.29024764]
[1718598710053,0.26673597,66370.0,66369.0,0.33536359]
[1718598710279,0.41740597,66370.0,66369.0,0.33536359]
[1718598710722,0.41740597,66370.0,66369.0,0.29024764]
[1718598710930,0.21613597,66370.0,66369.0,0.29024764]
[1718598711104,0.41740597,66370.0,66369.0,0.29024764]
[1718598711518,0.41740597,66370.0,66369.0,0.29024498]
[1718598711877,0.41740597,66370.0,66369.0,0.33535606]
[1718598712095,0.41740597,66370.0,66369.0,0.39787808]
[1718598712096,0.71874597,66370.0,66369.0,0.39787808]
[1718598712296,0.19631734,66370.0,66369.0,0.352767]
[1718598712557,0.24691734,66370.0,66369.0,0.39787808]
[1718598712954,0.24691734,66370.0,66369.0,0.35276341]
[1718598713331,0.24691734,66370.0,66369.0,0.50343541]
[1718598713532,0.242773,66370.0,66369.0,0.50343541]
[1718598713815,0.26259163,66370.0,66369.0,0.35276341]
[1718598714021,0.05387063,66370.0,66369.0,1.17379203]
[1718598714263,0.05387063,66370.0,66369.0,1.19679203]
[1718598714466,0.049733,66370.0,66369.0,1.21934757]
[1718598714610,0.049733,66370.0,66369.0,0.82778041]
[1718598715546,0.00085,66370.0,66369.0,0.82778041]
[1718598716375,0.049733,66370.0,66369.0,0.82778041]
[1718598716580,0.142173,66370.0,66369.0,0.82778041]
[1718598717557,0.049733,66370.0,66369.0,1.12912541]
[1718598717761,0.00085,66370.0,66369.0,1.12912541]
[1718598718140,0.00085,66370.0,66369.0,1.12911208]
[1718598719412,0.049733,66370.0,66369.0,0.941562]
[1718598719536,0.049733,66370.0,66369.0,1.12911132]
[1718598720589,0.00085,66370.0,66369.0,1.12911132]
[1718598721868,0.00085,66370.0,66369.0,0.76524988]
[1718598722152,0.14631063,66370.0,66369.0,0.640217]
[1718598722322,0.09329,66370.0,66369.0,0.640217]
[1718598722530,0.09742763,66370.0,66369.0,0.640217]
[1718598723340,0.00498763,66370.0,66369.0,0.640217]
[1718598723536,0.00498763,66370.0,66369.0,0.82776444]
[1718598724304,0.24217315,66370.0,66369.0,0.82776444]
[1718598724716,0.24217315,66370.0,66369.0,0.52641944]
[1718598724911,0.22235452,66370.0,66369.0,0.37574744]
[1718598725069,0.12991452,66370.0,66369.0,0.37574744]
[1718598725471,0.12991452,66370.0,66369.0,0.82776444]
[1718598727409,0.08103152,66370.0,66369.0,0.82776444]
[1718598727630,0.08103152,66370.0,66369.0,1.12910944]
[1718598728204,0.00498763,66370.0,66369.0,1.5827236]
[1718598728423,0.00498763,66370.0,66369.0,1.60079932]
[1718598728650,0.00085,66370.0,66369.0,1.60079932]
[1718598729339,0.00085,66370.0,66369.0,1.5827236]
[1718598729549,0.00085,66370.0,66369.0,1.58254223]
[1718598730218,0.00085,66370.0,66369.0,1.5827236]
[1718598730438,0.00085,66370.0,66369.0,1.60061795]
[1718598730846,0.00085,66370.0,66369.0,1.60079932]
[1718598733436,0.00085,66370.0,66369.0,1.5827236]
[1718598733614,0.00085,66370.0,66369.0,1.60079754]
[1718598734152,0.00085,66370.0,66369.0,1.5827236]
[1718598734562,0.00085,66370.0,66369.0,1.6827236]
[1718598735645,0.00085,66370.0,66369.0,1.6727236]
[1718598736215,0.00085,66370.0,66369.0,1.6617236]
[1718598736616,0.00085,66370.0,66369.0,1.6757236]
[1718598737198,0.00085,66370.0,66369.0,1.68954223]
[1718598737406,0.00085,66370.0,66369.0,1.6897236]
[1718598739306,0.00085,66370.0,66369.0,1.68954223]
[1718598742375,0.00085,66370.0,66369.0,1.38819723]
[1718598744247,0.00085,66370.0,66369.0,1.38818582]
[1718598745083,0.00085,66370.0,66369.0,1.38818561]
[1718598745964,0.00085,66370.0,66369.0,0.63482361]
[1718598745965,0.09329,66370.0,66369.0,0.63482361]
[1718598746188,0.24396,66370.0,66369.0,0.49062361]
[1718598746389,0.09329,66370.0,66369.0,0.62136384]
[1718598746557,0.0974451,66370.0,66369.0,0.60328753]
[1718598746807,0.0974451,66370.0,66369.0,0.49062361]
[1718598747051,0.0974451,66370.0,66369.0,0.64129561]
[1718598747264,0.0974451,66370.0,66369.0,0.75396809]
[1718598748144,0.56927373,66370.0,66369.0,0.3282083]
[1718598748613,0.5494551,66370.0,66369.0,0.3282083]
[1718598748820,0.26793373,66370.0,66369.0,0.3282083]
[1718598749022,0.26793373,66370.0,66369.0,0.21554438]
[1718598749817,0.11726373,66370.0,66369.0,0.21554438]
[1718598750265,0.0974451,66370.0,66369.0,0.3282083]
[1718598750676,0.0974451,66370.0,66369.0,0.21554438]
[1718598751103,0.11726373,66370.0,66369.0,0.21554438]
[1718598752142,0.56927373,66370.0,66369.0,0.30574502]
[1718598752353,0.64657373,66370.0,66369.0,0.21554438]
[1718598752575,0.64657373,66370.0,66369.0,0.30575437]
[1718598752576,0.34523373,66370.0,66369.0,0.30575437]
[1718598752786,0.3254151,66370.0,66369.0,0.30575437]
[1718598753196,0.3254151,66370.0,66369.0,0.21554438]
[1718598753841,0.34523373,66370.0,66369.0,0.21554438]
[1718598755324,0.34523373,66370.0,66369.0,0.3282083]
[1718598755702,0.34523373,66370.0,66369.0,0.32836144]
[1718598756756,0.3254151,66370.0,66369.0,0.32836144]
[1718598756966,0.34523373,66370.0,66369.0,0.32836144]
[1718598757597,0.26793373,66370.0,66369.0,0.32836144]
[1718598757830,0.0974451,66370.0,66369.0,0.32838297]
[1718598759355,0.0974451,66370.0,66369.0,0.21555107]
[1718598760556,0.39403373,66370.0,66369.0,0.21555107]
[1718598760726,0.44463373,66370.0,66369.0,0.21555107]
[1718598760915,0.44463373,66370.0,66369.0,0.32840772]
[1718598762967,0.0974451,66370.0,66369.0,0.78042472]
[1718598763167,0.0974451,66370.0,66369.0,0.92732472]